fUST/lending_fUST_20250205
["ID","MTS","AMOUNT","RATE_DAILY","PERIOD"]
[351719605,1738763446704,-5671.82,0.0001561,2]
[351719607,1738763446713,-635.42,0.0001561,2]
[351719609,1738763446723,-2816.85,0.0001561,2]
[351719611,1738763446732,-3087.48,0.0001561,2]
[351719613,1738763446745,-500.0,0.0001561,2]
[351719615,1738763446755,-500.0,0.0001561,2]
[351719617,1738763446764,-828.25,0.0001561,2]
[351719619,1738763446774,-632.09,0.0001561,2]
[351719621,1738763446783,-2541.31495763,0.0001561,2]
[351719679,1738763447482,-343.0000073,0.00015472,2]
[351720586,1738763604385,1000.0,0.00015,4]
[351720587,1738763605867,153.14,0.000179,31]
[351720588,1738763605925,153.14,0.000179,31]
[351720589,1738763605986,153.14,0.000179,31]
[351720590,1738763606045,153.14,0.000179,31]
[351720591,1738763606100,153.14,0.000179,31]
[351720592,1738763606165,153.14,0.000179,31]
[351720593,1738763606221,153.14,0.000179,31]
[351720595,1738764136908,161.441,0.0001492,2]
[351720597,1738764417402,298.26162,0.00014468,2]
[351720598,1738764445563,3000.31123153,0.00015012,2]
[351720599,1738764534696,293.435957,0.00013973,2]
[351720609,1738764632456,-503.0,0.00015068,2]
[351720610,1738764632466,-60.76519869,0.00015214,2]
[351720612,1738764632477,-836.749995,0.00015214,2]
[351720614,1738764632489,-165.99491471,0.00015214,2]
[351720615,1738764632498,-161.43159,0.00015368,2]
[351720689,1738764638855,-46.69631073,0.00015368,2]
[351720691,1738764638865,-555.55675,0.00015392,2]
[351720693,1738764638875,-241.93776301,0.00015465,2]
[351720695,1738764638888,-58.06223699,0.00015465,2]
[351720697,1738764638897,-500.0,0.00015466,2]
[351720699,1738764638907,-2432.02275801,0.00015466,2]
[351720701,1738764638919,-3157.4254304,0.00015466,2]
[351720703,1738764638931,-740.12181159,0.00015466,2]
[351720705,1738764638940,-2585.57,0.00015466,2]
[351720707,1738764638950,-1308.49,0.00015466,2]
[351720709,1738764638959,-500.0,0.00015466,2]
[351720710,1738764638970,-621.85871814,0.00015467,2]
[351720712,1738764638979,-500.0,0.00015467,2]
[351720714,1738764638988,-1887.0467582,0.00015467,2]
[351720717,1738764639007,-9404.1232418,0.00015467,2]
[351720719,1738764639017,-990.15,0.00015467,2]
[351720721,1738764639026,-533.99,0.00015467,2]
[351720722,1738764639035,-18527.06,0.00015467,2]
[351720724,1738764639045,-491.95714354,0.00015467,2]
[351720726,1738764639055,-500.0,0.00015467,2]
[351720728,1738764639064,-654.35,0.00015467,2]
[351720730,1738764639073,-500.0,0.00015467,2]
[351720732,1738764639082,-8920.75,0.00015467,2]
[351720734,1738764639091,-7386.5,0.00015467,2]
[351720735,1738764639101,-500.0,0.00015467,2]
[351720737,1738764639110,-3873.05,0.00015467,2]
[351720739,1738764639120,-500.0,0.00015467,2]
[351720741,1738764639129,-1512.79,0.00015467,2]
[351720743,1738764639139,-2980.54,0.00015467,2]
[351720745,1738764639152,-1302.9,0.00015467,2]
[351720747,1738764639161,-625.69,0.00015467,2]
[351720749,1738764639170,-500.0,0.00015467,2]
[351720751,1738764639180,-500.0,0.00015467,2]
[351720752,1738764639190,-500.0,0.00015467,2]
[351720754,1738764639200,-1015.14,0.00015467,2]
[351720756,1738764639209,-500.0,0.00015467,2]
[351720758,1738764639221,-3228.08,0.00015467,2]
[351720760,1738764639231,-3748.11,0.00015467,2]
[351720762,1738764639242,-7930.55,0.00015467,2]
[351720764,1738764639251,-3088.01,0.00015467,2]
[351720766,1738764639261,-12931.27,0.00015467,2]
[351720768,1738764639271,-632.73,0.00015467,2]
[351720770,1738764639281,-876.66,0.00015467,2]
[351720772,1738764639290,-626.28,0.00015467,2]
[351720773,1738764639301,-812.79,0.00015467,2]
[351720775,1738764639310,-500.0,0.00015467,2]
[351720777,1738764639320,-257.85817039,0.00015467,2]
[351720779,1738764639329,-500.0,0.00015467,2]
[351720781,1738764639338,-908.4,0.00015467,2]
[351720783,1738764639348,-3210.64,0.00015467,2]
[351720785,1738764639357,-888.13,0.00015468,2]
[351720787,1738764639367,-366.57653058,0.00015468,2]
[351720788,1738764639376,-500.0,0.00015468,2]
[351720790,1738764639384,-500.0,0.00015468,2]
[351720792,1738764639394,-500.0,0.00015468,2]
[351720794,1738764639404,-505.86383912,0.00015468,2]
[351720796,1738764639413,-563.47,0.00015468,2]
[351720798,1738764639423,-500.0,0.00015468,2]
[351720800,1738764639432,-504.43537008,0.00015468,2]
[351720802,1738764639442,-505.37261328,0.00015468,2]
[351720804,1738764639452,-500.00041754,0.00015468,2]
[351720805,1738764639461,-510.16371489,0.00015468,2]
[351720807,1738764639471,-500.0,0.00015468,2]
[351720809,1738764639480,-500.0,0.00015468,2]
[351720811,1738764639490,-508.37388053,0.00015468,2]
[351720813,1738764639500,-1156.54,0.00015468,2]
[351720815,1738764639509,-500.0,0.00015468,2]
[351720817,1738764639519,-500.0,0.00015468,2]
[351720819,1738764639528,-500.0,0.00015468,2]
[351720820,1738764639538,-500.0,0.00015468,2]
[351720822,1738764639547,-503.83618646,0.00015468,2]
[351720824,1738764639557,-501.64026288,0.00015468,2]
[351720826,1738764639566,-571.00024054,0.00015468,2]
[351720828,1738764639575,-500.0,0.00015468,2]
[351720830,1738764639585,-3475.05,0.00015468,2]
[351720832,1738764639595,-500.0,0.00015468,2]
[351720834,1738764639604,-500.0,0.00015468,2]
[351720836,1738764639613,-158.20876609,0.00015468,2]
[351720837,1738764639623,-500.0,0.00015468,2]
[351720839,1738764639632,-500.0,0.00015468,2]
[351720841,1738764639642,-500.0,0.00015468,2]
[351720843,1738764639652,-592.83,0.00015468,2]
[351720845,1738764639662,-500.0,0.00015468,2]
[351720847,1738764639672,-500.0,0.00015468,2]
[351720849,1738764639682,-553.84,0.00015468,2]
[351720851,1738764639692,-2146.01,0.00015468,2]
[351720853,1738764639701,-500.0,0.00015468,2]
[351720854,1738764639710,-187.17761615,0.00015468,2]
[351720856,1738764639720,-506.51224385,0.00015468,2]
[351720858,1738764639730,-530.96,0.00015468,2]
[351720860,1738764639739,-621.73,0.00015468,2]
[351720862,1738764639751,-500.0,0.00015468,2]
[351720864,1738764639761,-500.0,0.00015468,2]
[351720866,1738764639770,-500.0,0.00015468,2]
[351720868,1738764639780,-500.0,0.00015468,2]
[351720870,1738764639790,-500.0,0.00015468,2]
[351720871,1738764639799,-1588.77,0.00015468,2]
[351720873,1738764639810,-500.0,0.00015468,2]
[351720875,1738764639819,-500.0,0.00015468,2]
[351720877,1738764639829,-1037.21,0.00015468,2]
[351720879,1738764639838,-500.0,0.00015468,2]
[351720881,1738764639848,-500.0,0.00015468,2]
[351720883,1738764639858,-500.0,0.00015468,2]
[351720885,1738764639868,-1509.57,0.00015468,2]
[351720886,1738764639877,-521.1,0.00015468,2]
[351720888,1738764639887,-500.0,0.00015468,2]
[351720890,1738764639897,-500.0,0.00015468,2]
[351720892,1738764639907,-500.0,0.00015468,2]
[351720894,1738764639917,-500.0,0.00015468,2]
[351720896,1738764639927,-500.0,0.00015468,2]
[351720898,1738764639937,-500.0,0.00015468,2]
[351720900,1738764639946,-355.15705194,0.00015468,2]
[351720902,1738764639956,-2559.54,0.00015468,2]
[351720904,1738764639965,-500.0,0.00015468,2]
[351720906,1738764639975,-500.0,0.00015468,2]
[351720908,1738764639985,-1259.01,0.00015468,2]
[351720909,1738764639994,-500.0,0.00015468,2]
[351720911,1738764640004,-274.96370318,0.00015468,2]
[351720913,1738764640013,-519.22,0.00015468,2]
[351720915,1738764640023,-500.0,0.00015468,2]
[351720917,1738764640034,-1905.11,0.00015468,2]
[351720920,1738764640044,-500.0,0.00015468,2]
[351720923,1738764640054,-500.0,0.00015468,2]
[351720924,1738764640064,-500.0,0.00015468,2]
[351720925,1738764640073,-500.0,0.00015468,2]
[351720926,1738764640082,-500.0,0.00015468,2]
[351720927,1738764640091,-500.0,0.00015468,2]
[351720928,1738764640100,-500.0,0.00015468,2]
[351720929,1738764640109,-663.68,0.00015468,2]
[351720930,1738764640118,-500.0,0.00015468,2]
[351720931,1738764640127,-500.0,0.00015468,2]
[351720932,1738764640137,-500.0,0.00015468,2]
[351720933,1738764640146,-500.0,0.00015468,2]
[351720934,1738764640158,-500.0,0.00015468,2]
[351720935,1738764640168,-500.0,0.00015468,2]
[351720936,1738764640179,-500.0,0.00015468,2]
[351720937,1738764640188,-1717.42,0.00015468,2]
[351720938,1738764640197,-500.0,0.00015468,2]
[351720939,1738764640207,-751.76,0.00015468,2]
[351720940,1738764640216,-1820.73,0.00015468,2]
[351720941,1738764640225,-500.0,0.00015468,2]
[351720942,1738764640235,-1645.43,0.00015468,2]
[351720943,1738764640245,-519.29,0.00015468,2]
[351720944,1738764640254,-923.11,0.00015468,2]
[351720945,1738764640263,-854.13,0.00015468,2]
[351720946,1738764640272,-500.0,0.00015468,2]
[351720947,1738764640281,-500.0,0.00015468,2]
[351720948,1738764640290,-1187.34,0.00015468,2]
[351720949,1738764640299,-500.0,0.00015468,2]
[351720950,1738764640308,-2650.55,0.00015468,2]
[351720951,1738764640317,-1580.38,0.00015468,2]
[351720952,1738764640326,-500.0,0.00015468,2]
[351720953,1738764640336,-500.0,0.00015468,2]
[351720954,1738764640345,-1031.56,0.00015468,2]
[351720955,1738764640353,-500.0,0.00015468,2]
[351720956,1738764640362,-519.99234604,0.00015468,2]
[351720958,1738764640372,-289.85139457,0.00015468,2]
[351720959,1738764640381,-500.0,0.00015468,2]
[351720961,1738764640390,-517.06471231,0.00015468,2]
[351720963,1738764640399,-504.73756369,0.00015468,2]
[351720965,1738764640409,-679.68,0.00015468,2]
[351720967,1738764640418,-673.88,0.00015468,2]
[351720969,1738764640427,-1108.91,0.00015468,2]
[351720971,1738764640436,-581.221941,0.00015468,2]
[351720973,1738764640446,-500.0,0.00015468,2]
[351720975,1738764640455,-500.0,0.00015468,2]
[351720977,1738764640465,-763.51,0.00015468,2]
[351720979,1738764640475,-573.11,0.00015468,2]
[351720981,1738764640484,-1226.17,0.00015468,2]
[351720983,1738764640494,-2114.3,0.00015468,2]
[351720985,1738764640504,-824.01,0.00015468,2]
[351720987,1738764640512,-500.0,0.00015468,2]
[351721005,1738764640667,-500.0,0.00015468,2]
[351721007,1738764640676,-522.31791912,0.00015468,2]
[351721009,1738764640686,-500.0,0.00015468,2]
[351721011,1738764640695,-500.0,0.00015468,2]
[351721013,1738764640705,-170.91706599,0.00015468,2]
[351721015,1738764640714,-500.0,0.00015468,2]
[351721017,1738764640724,-500.0,0.00015468,2]
[351721019,1738764640734,-500.0,0.00015468,2]
[351721021,1738764640743,-500.0,0.00015468,2]
[351721023,1738764640752,-500.0,0.00015468,2]
[351721024,1738764640761,-500.0,0.00015468,2]
[351721027,1738764640770,-500.0,0.00015468,2]
[351721029,1738764640780,-817.69,0.00015468,2]
[351721030,1738764640790,-500.0,0.00015468,2]
[351721033,1738764640800,-9887.51,0.00015468,2]
[351721035,1738764640809,-500.0,0.00015468,2]
[351721036,1738764640818,-500.0,0.00015468,2]
[351721038,1738764640827,-500.0,0.00015468,2]
[351721040,1738764640836,-500.0,0.00015468,2]
[351721042,1738764640845,-500.0,0.00015468,2]
[351721044,1738764640854,-4726.84,0.00015468,2]
[351721046,1738764640864,-500.0,0.00015468,2]
[351721048,1738764640873,-500.0,0.00015468,2]
[351721050,1738764640882,-823.98,0.00015468,2]
[351721052,1738764640892,-500.0,0.00015468,2]
[351721054,1738764640902,-622.45327861,0.00015468,2]
[351721056,1738764640910,-5345.6,0.00015468,2]
[351721058,1738764640921,-4080.62,0.00015468,2]
[351721060,1738764640932,-1440.9,0.00015468,2]
[351721062,1738764640942,-3558.22,0.00015468,2]
[351721064,1738764640951,-500.0,0.00015468,2]
[351721066,1738764640960,-500.0,0.00015468,2]
[351721068,1738764640970,-201.9818426,0.00015468,2]
[351721071,1738764640980,-500.0,0.00015468,2]
[351721073,1738764640990,-500.0,0.00015468,2]
[351721075,1738764641001,-3087.48,0.00015468,2]
[351721077,1738764641010,-500.0,0.00015468,2]
[351721079,1738764641020,-500.0,0.00015468,2]
[351721081,1738764641029,-500.0,0.00015468,2]
[351721083,1738764641039,-500.0,0.00015468,2]
[351721085,1738764641049,-635.42,0.00015468,2]
[351721087,1738764641058,-500.0,0.00015468,2]
[351721089,1738764641068,-500.0,0.00015468,2]
[351721091,1738764641077,-500.0,0.00015468,2]
[351721093,1738764641087,-500.0,0.00015468,2]
[351721095,1738764641097,-500.0,0.00015468,2]
[351721096,1738764641106,-2936.92,0.00015468,2]
[351721098,1738764641115,-2816.85,0.00015468,2]
[351721101,1738764641127,-828.25,0.00015468,2]
[351721102,1738764641137,-500.0,0.00015468,2]
[351721104,1738764641149,-500.0,0.00015468,2]
[351721107,1738764641159,-1106.76,0.00015468,2]
[351721109,1738764641169,-4117.99,0.00015468,2]
[351721111,1738764641180,-500.0,0.00015468,2]
[351721113,1738764641190,-500.0,0.00015468,2]
[351721115,1738764641199,-500.0,0.00015468,2]
[351721117,1738764641208,-500.0,0.00015468,2]
[351721118,1738764641217,-698.0,0.00015468,2]
[351721121,1738764641227,-500.0,0.00015468,2]
[351721123,1738764641237,-654.5,0.00015468,2]
[351721125,1738764641248,-500.0,0.00015468,2]
[351721127,1738764641257,-1394.99,0.00015468,2]
[351721129,1738764641267,-500.0,0.00015468,2]
[351721130,1738764641277,-656.19,0.00015468,2]
[351721132,1738764641287,-500.0,0.00015468,2]
[351721134,1738764641298,-982.98,0.00015468,2]
[351721136,1738764641307,-500.0,0.00015468,2]
[351721138,1738764641316,-698.62,0.00015468,2]
[351721140,1738764641328,-559.21769704,0.00015468,2]
[351721142,1738764641337,-500.0,0.00015468,2]
[351721144,1738764641346,-500.0,0.00015468,2]
[351721146,1738764641355,-507.18,0.00015468,2]
[351721148,1738764641364,-500.0,0.00015468,2]
[351721150,1738764641373,-500.0,0.00015468,2]
[351721152,1738764641382,-500.0,0.00015468,2]
[351721154,1738764641392,-197.77364273,0.00015468,2]
[351721156,1738764641401,-653.94,0.00015468,2]
[351721158,1738764641411,-500.0,0.00015468,2]
[351721160,1738764641420,-500.0,0.00015468,2]
[351721162,1738764641429,-500.0,0.00015468,2]
[351721164,1738764641438,-500.0,0.00015468,2]
[351721166,1738764641448,-1308.22,0.00015468,2]
[351721167,1738764641458,-8275.04,0.00015468,2]
[351721168,1738764641467,-500.0,0.00015468,2]
[351721169,1738764641477,-500.0,0.00015468,2]
[351721170,1738764641486,-605.85,0.00015468,2]
[351721171,1738764641495,-1585.42,0.00015468,2]
[351721172,1738764641505,-500.0,0.00015468,2]
[351721173,1738764641514,-500.0,0.00015468,2]
[351721174,1738764641523,-668.99,0.00015468,2]
[351721175,1738764641533,-158.03693496,0.00015468,2]
[351721176,1738764641543,-500.0,0.00015468,2]
[351721177,1738764641559,-632.09,0.00015468,2]
[351721178,1738764641568,-500.0,0.00015468,2]
[351721179,1738764641577,-1514.7,0.00015468,2]
[351721180,1738764641587,-500.0,0.00015468,2]
[351721181,1738764641596,-500.0,0.00015468,2]
[351721182,1738764641606,-3069.18,0.00015468,2]
[351721183,1738764641615,-500.0,0.00015468,2]
[351721184,1738764641625,-264.22260139,0.00015468,2]
[351721185,1738764641634,-500.0,0.00015468,2]
[351721186,1738764641643,-500.0,0.00015468,2]
[351721188,1738764641653,-500.0,0.00015468,2]
[351721190,1738764641663,-1645.7,0.00015468,2]
[351721193,1738764641672,-657.43,0.00015468,2]
[351721195,1738764641682,-35055.38,0.00015468,2]
[351721197,1738764641691,-500.0,0.00015468,2]
[351721199,1738764641701,-500.0,0.00015468,2]
[351721201,1738764641711,-500.0,0.00015468,2]
[351721203,1738764641720,-500.0,0.00015468,2]
[351721205,1738764641729,-1750.73,0.00015468,2]
[351721207,1738764641738,-822.38,0.00015468,2]
[351721209,1738764641748,-500.0,0.00015468,2]
[351721210,1738764641758,-500.0,0.00015468,2]
[351721212,1738764641767,-2991.92,0.00015468,2]
[351721214,1738764641776,-988.45,0.00015468,2]
[351721216,1738764641786,-500.0,0.00015468,2]
[351721218,1738764641795,-500.0,0.00015468,2]
[351721220,1738764641805,-500.0,0.00015468,2]
[351721222,1738764641815,-500.0,0.00015468,2]
[351721224,1738764641829,-500.0,0.00015468,2]
[351721226,1738764641838,-514.94,0.00015468,2]
[351721227,1738764641852,-500.0,0.00015468,2]
[351721228,1738764641870,-1153.74,0.00015468,2]
[351721229,1738764641879,-500.0,0.00015468,2]
[351721230,1738764641889,-500.0,0.00015468,2]
[351721231,1738764641898,-759.83,0.00015468,2]
[351721232,1738764641908,-500.0,0.00015468,2]
[351721233,1738764641917,-500.0,0.00015468,2]
[351721234,1738764641926,-573.81,0.00015468,2]
[351721235,1738764641936,-8083.43,0.00015468,2]
[351721236,1738764641946,-500.0,0.00015468,2]
[351721237,1738764641956,-500.0,0.00015468,2]
[351721238,1738764641966,-500.0,0.00015468,2]
[351721239,1738764641975,-500.0,0.00015468,2]
[351721240,1738764641985,-500.0,0.00015468,2]
[351721241,1738764641994,-500.0,0.00015468,2]
[351721242,1738764642005,-500.0,0.00015468,2]
[351721243,1738764642015,-227.49803977,0.00015468,2]
[351721244,1738764642024,-500.0,0.00015468,2]
[351721245,1738764642034,-500.0,0.00015468,2]
[351721246,1738764642043,-500.0,0.00015468,2]
[351721248,1738764642053,-584.83,0.00015468,2]
[351721250,1738764642062,-500.0,0.00015468,2]
[351721252,1738764642072,-500.0,0.00015468,2]
[351721253,1738764642082,-500.0,0.00015468,2]
[351721255,1738764642092,-500.0,0.00015468,2]
[351721257,1738764642101,-500.0,0.00015468,2]
[351721259,1738764642112,-500.0,0.00015468,2]
[351721261,1738764642122,-500.0,0.00015468,2]
[351721263,1738764642132,-502.89173317,0.00015468,2]
[351721265,1738764642143,-1174.56,0.00015468,2]
[351721267,1738764642153,-500.0,0.00015468,2]
[351721269,1738764642162,-500.0,0.00015468,2]
[351721271,1738764642171,-500.0,0.00015468,2]
[351721273,1738764642183,-500.0,0.00015468,2]
[351721275,1738764642193,-500.0,0.00015468,2]
[351721277,1738764642202,-500.0,0.00015468,2]
[351721279,1738764642211,-500.0,0.00015468,2]
[351721281,1738764642222,-635.36,0.00015468,2]
[351721283,1738764642232,-500.0,0.00015468,2]
[351721285,1738764642242,-2732.02,0.00015468,2]
[351721287,1738764642252,-41618.06,0.00015468,2]
[351721289,1738764642261,-500.0,0.00015468,2]
[351721291,1738764642271,-500.0,0.00015468,2]
[351721293,1738764642282,-220.24451567,0.00015468,2]
[351721296,1738764642291,-500.0,0.00015468,2]
[351721298,1738764642301,-500.0,0.00015468,2]
[351721300,1738764642312,-500.0,0.00015468,2]
[351721301,1738764642321,-500.0,0.00015468,2]
[351721303,1738764642331,-500.0,0.00015468,2]
[351721305,1738764642340,-500.0,0.00015468,2]
[351721308,1738764642350,-502.68,0.00015468,2]
[351721309,1738764642359,-500.0,0.00015468,2]
[351721311,1738764642368,-500.0,0.00015468,2]
[351721313,1738764642378,-500.0,0.00015468,2]
[351721315,1738764642387,-124691.77,0.00015468,2]
[351721317,1738764642397,-500.0,0.00015468,2]
[351721319,1738764642406,-5671.82,0.00015468,2]
[351721321,1738764642415,-500.0,0.00015468,2]
[351721323,1738764642425,-500.0,0.00015468,2]
[351721325,1738764642434,-500.0,0.00015469,2]
[351721326,1738764642443,-509.79,0.00015469,2]
[351721328,1738764642453,-748.48,0.00015469,2]
[351721330,1738764642461,-537.82,0.00015469,2]
[351721331,1738764642471,-1786.97,0.00015469,2]
[351721332,1738764642480,-500.0,0.00015469,2]
[351721334,1738764642490,-991.75,0.00015469,2]
[351721336,1738764642500,-464.87876989,0.00015469,2]
[351721338,1738764642509,-2330.05,0.00015469,2]
[351721340,1738764642519,-500.0,0.00015469,2]
[351721342,1738764642527,-500.0,0.00015469,2]
[351721344,1738764642537,-500.0,0.00015469,2]
[351721345,1738764642547,-1065.85,0.00015469,2]
[351721347,1738764642562,-550.25,0.00015469,2]
[351721349,1738764642574,-1272.88,0.00015469,2]
[351721351,1738764642583,-500.0,0.00015469,2]
[351721353,1738764642593,-3850.1,0.00015469,2]
[351721355,1738764642608,-500.0,0.00015469,2]
[351721357,1738764642619,-500.0,0.00015469,2]
[351721358,1738764642628,-4190.82,0.00015469,2]
[351721359,1738764642638,-500.0,0.00015469,2]
[351721360,1738764642647,-500.0,0.00015469,2]
[351721361,1738764642656,-827.02,0.00015469,2]
[351721362,1738764642666,-1127.0,0.00015469,2]
[351721363,1738764642675,-1108.5,0.00015469,2]
[351721364,1738764642684,-500.0,0.00015469,2]
[351721365,1738764642694,-1210.39,0.00015469,2]
[351721366,1738764642703,-500.0,0.00015469,2]
[351721367,1738764642712,-500.0,0.0001547,2]
[351721368,1738764642722,-264.79835381,0.0001547,2]
[351721369,1738764642732,-500.0,0.0001547,2]
[351721370,1738764642742,-500.0,0.0001547,2]
[351721371,1738764642752,-833.33,0.0001547,2]
[351721372,1738764642761,-500.0,0.0001547,2]
[351721373,1738764642770,-500.0,0.0001547,2]
[351721374,1738764642780,-503.56299135,0.0001547,2]
[351721375,1738764642790,-500.0,0.0001547,2]
[351721376,1738764642799,-500.0,0.0001547,2]
[351721377,1738764642809,-500.0,0.0001547,2]
[351721378,1738764642818,-500.0,0.0001547,2]
[351721379,1738764642827,-659.4,0.0001547,2]
[351721380,1738764642837,-500.0,0.0001547,2]
[351721381,1738764642846,-1366.59,0.0001547,2]
[351721382,1738764642857,-500.0,0.0001547,2]
[351721383,1738764642867,-955.45,0.0001547,2]
[351721384,1738764642876,-500.0,0.0001547,2]
[351721385,1738764642886,-500.0,0.0001547,2]
[351721386,1738764642896,-1129.2,0.0001547,2]
[351721387,1738764642905,-500.0,0.0001547,2]
[351721388,1738764642915,-500.0,0.0001547,2]
[351721389,1738764642925,-500.0,0.0001547,2]
[351721390,1738764642934,-500.0,0.0001547,2]
[351721391,1738764642945,-639.76,0.0001547,2]
[351721392,1738764642955,-500.0,0.0001547,2]
[351721394,1738764642965,-500.0,0.0001547,2]
[351721396,1738764642974,-642.07,0.0001547,2]
[351721398,1738764642983,-1989.35,0.0001547,2]
[351721399,1738764642993,-597.31,0.0001547,2]
[351721401,1738764643002,-500.49649601,0.0001547,2]
[351721404,1738764643012,-500.0,0.0001547,2]
[351721406,1738764643021,-511.95,0.0001547,2]
[351721409,1738764643031,-775.79,0.0001547,2]
[351721411,1738764643041,-500.0,0.0001547,2]
[351721413,1738764643051,-500.0,0.00015471,2]
[351721415,1738764643060,-500.0,0.00015471,2]
[351721417,1738764643070,-1169.52,0.00015471,2]
[351721418,1738764643080,-500.0,0.00015471,2]
[351721419,1738764643090,-623.49,0.00015471,2]
[351721420,1738764643099,-500.0,0.00015471,2]
[351721421,1738764643109,-500.0,0.00015471,2]
[351721422,1738764643118,-500.0,0.00015471,2]
[351721423,1738764643138,-500.0,0.00015471,2]
[351721425,1738764643147,-814.2,0.00015471,2]
[351721427,1738764643156,-1589.3,0.00015471,2]
[351721429,1738764643165,-500.0,0.00015471,2]
[351721431,1738764643175,-500.0,0.00015471,2]
[351721433,1738764643184,-867.65,0.00015471,2]
[351721435,1738764643194,-708.05,0.00015471,2]
[351721437,1738764643203,-500.0,0.00015471,2]
[351721439,1738764643213,-500.0,0.00015471,2]
[351721441,1738764643223,-602.21471939,0.00015471,2]
[351721443,1738764643232,-853.03,0.00015471,2]
[351721445,1738764643241,-500.0,0.00015471,2]
[351721447,1738764643252,-594.91,0.00015471,2]
[351721449,1738764643261,-500.0,0.00015471,2]
[351721450,1738764643270,-500.0,0.00015471,2]
[351721453,1738764643280,-500.0,0.00015471,2]
[351721455,1738764643290,-639.61989812,0.00015471,2]
[351721456,1738764643299,-500.0,0.00015471,2]
[351721458,1738764643308,-478.70808972,0.00015471,2]
[351721460,1738764643317,-188.0,0.00015471,2]
[351721462,1738764643326,-902.6,0.00015471,2]
[351721464,1738764643336,-500.0,0.00015471,2]
[351721466,1738764643346,-500.0,0.00015471,2]
[351721469,1738764643356,-500.0,0.00015471,2]
[351721471,1738764643365,-500.0,0.00015471,2]
[351721473,1738764643374,-500.0,0.00015471,2]
[351721475,1738764643384,-500.0,0.00015471,2]
[351721476,1738764643393,-500.0,0.00015471,2]
[351721479,1738764643403,-500.0,0.00015471,2]
[351721480,1738764643412,-500.0,0.00015471,2]
[351721498,1738764643564,-502.5275146,0.00015471,2]
[351721500,1738764643574,-500.0,0.00015471,2]
[351721502,1738764643584,-501.94613288,0.00015471,2]
[351721504,1738764643594,-500.0,0.00015471,2]
[351721506,1738764643604,-502.62023992,0.00015471,2]
[351721508,1738764643614,-500.0,0.00015471,2]
[351721510,1738764643624,-500.0,0.00015471,2]
[351721512,1738764643634,-500.0,0.00015471,2]
[351721513,1738764643644,-1000.0,0.00015471,2]
[351721514,1738764643654,-500.0,0.00015471,2]
[351721515,1738764643663,-500.0,0.00015471,2]
[351721516,1738764643673,-500.0,0.00015471,2]
[351721517,1738764643683,-500.0,0.00015471,2]
[351721518,1738764643693,-500.0,0.00015471,2]
[351721519,1738764643703,-178.0216987,0.00015471,2]
[351721520,1738764643712,-500.0,0.00015471,2]
[351721521,1738764643723,-500.0,0.00015471,2]
[351721522,1738764643733,-500.0,0.00015471,2]
[351721523,1738764643743,-500.0,0.00015471,2]